fUST/lending_fUST_20251006
["ID","MTS","AMOUNT","RATE_DAILY","PERIOD"]
[389496982,1759683055188,-3451.89,0.0001726,2]
[389496983,1759683055204,-1321.69,0.0001726,2]
[389496984,1759683055215,-500.0,0.0001726,2]
[389496985,1759683055224,-587.27,0.0001726,2]
[389496986,1759683055235,-500.0,0.0001726,2]
[389496987,1759683055244,-500.0,0.0001726,2]
[389496988,1759683055253,-500.0,0.0001726,2]
[389496989,1759683055262,-500.0,0.0001726,2]
[389496990,1759683055272,-500.0,0.0001726,2]
[389496991,1759683055282,-500.0,0.0001726,2]
[389496992,1759683055291,-919.59,0.0001726,2]
[389496993,1759683055300,-586.99,0.0001726,2]
[389496994,1759683055310,-500.0,0.0001726,2]
[389496995,1759683055319,-500.0,0.0001726,2]
[389496996,1759683055328,-237.44357055,0.0001726,2]
[389496997,1759683055337,-500.0,0.0001726,2]
[389496998,1759683055346,-1240.25,0.0001726,2]
[389496999,1759683055354,-500.0,0.0001726,2]
[389497000,1759683055363,-1980.12,0.0001726,2]
[389497001,1759683055370,-500.0,0.0001726,2]
[389497002,1759683055379,-500.0,0.0001726,2]
[389497003,1759683055388,-589.1,0.0001726,2]
[389497004,1759683055397,-500.0,0.0001726,2]
[389497005,1759683055407,-500.0,0.0001726,2]
[389497006,1759683055416,-690.9,0.0001726,2]
[389497007,1759683055425,-505.92,0.0001726,2]
[389497008,1759683055435,-500.0,0.0001726,2]
[389497009,1759683055448,-500.0,0.0001726,2]
[389497010,1759683055457,-500.0,0.0001726,2]
[389497011,1759683055467,-500.0,0.0001726,2]
[389497012,1759683055476,-500.0,0.0001726,2]
[389497013,1759683055485,-766.86,0.0001726,2]
[389497014,1759683055494,-500.0,0.0001726,2]
[389497015,1759683055504,-750.6,0.0001726,2]
[389497016,1759683055515,-662.6,0.0001726,2]
[389497017,1759683055528,-500.0,0.0001726,2]
[389497018,1759683055542,-500.0,0.0001726,2]
[389497019,1759683055551,-2886.56,0.0001726,2]
[389497020,1759683055561,-548.46,0.0001726,2]
[389497021,1759683055570,-878.92,0.0001726,2]
[389497022,1759683055580,-1381.99,0.0001726,2]
[389497023,1759683055590,-500.0,0.0001726,2]
[389497024,1759683055600,-500.0,0.0001726,2]
[389497025,1759683055610,-500.0,0.0001726,2]
[389497026,1759683055620,-500.0,0.0001726,2]
[389497027,1759683055629,-500.0,0.0001726,2]
[389497028,1759683055641,-500.0,0.0001726,2]
[389497029,1759683055651,-500.0,0.0001726,2]
[389497030,1759683055662,-1231.65,0.0001726,2]
[389497031,1759683055672,-500.0,0.0001726,2]
[389497032,1759683055681,-500.0,0.0001726,2]
[389497033,1759683055690,-656.49,0.0001726,2]
[389497034,1759683055705,-500.0,0.0001726,2]
[389497035,1759683055714,-500.0,0.0001726,2]
[389497036,1759683055723,-230.86931426,0.0001726,2]
[389497037,1759683055732,-1288.0,0.0001726,2]
[389497038,1759683055742,-500.0,0.0001726,2]
[389497039,1759683055751,-675.41,0.0001726,2]
[389497040,1759683055760,-489.40209826,0.0001726,2]
[389497041,1759683055769,-519.32,0.0001726,2]
[389497042,1759683055779,-828.85,0.0001726,2]
[389497043,1759683055789,-843.89,0.0001726,2]
[389497044,1759683055799,-500.0,0.0001726,2]
[389497045,1759683055808,-500.0,0.0001726,2]
[389497046,1759683055817,-500.0,0.0001726,2]
[389497047,1759683055827,-1439.12,0.0001726,2]
[389497048,1759683055836,-500.0,0.0001726,2]
[389497049,1759683055845,-500.0,0.0001726,2]
[389497050,1759683055854,-1208.03,0.0001726,2]
[389497051,1759683055863,-500.0,0.0001726,2]
[389497052,1759683055872,-500.0,0.0001726,2]
[389497053,1759683055882,-151.0,0.0001726,2]
[389497054,1759683055891,-500.0,0.0001726,2]
[389497055,1759683055900,-500.0,0.0001726,2]
[389497056,1759683055910,-2847.73,0.0001726,2]
[389497057,1759683055920,-500.0,0.0001726,2]
[389497058,1759683055929,-500.0,0.0001726,2]
[389497059,1759683055938,-500.0,0.0001726,2]
[389497060,1759683055951,-183.88,0.0001726,2]
[389497061,1759683055961,-1201.88,0.0001726,2]
[389497062,1759683055971,-500.0,0.0001726,2]
[389497063,1759683055980,-7543.42,0.0001726,2]
[389497064,1759683055989,-500.0,0.0001726,2]
[389497065,1759683055999,-500.0,0.0001726,2]
[389497066,1759683056010,-2501.47,0.0001726,2]
[389497067,1759683056019,-500.0,0.0001726,2]
[389497068,1759683056028,-500.0,0.0001726,2]
[389497069,1759683056038,-605.92,0.0001726,2]
[389497070,1759683056047,-2829.49,0.0001726,2]
[389497071,1759683056057,-500.0,0.0001726,2]
[389497072,1759683056067,-500.0,0.0001726,2]
[389497073,1759683056076,-7633.12,0.0001726,2]
[389497074,1759683056086,-500.0,0.0001726,2]
[389497075,1759683056095,-1955.89,0.0001726,2]
[389497076,1759683056104,-500.0,0.0001726,2]
[389497077,1759683056113,-500.0,0.0001726,2]
[389497078,1759683056122,-500.0,0.0001726,2]
[389497079,1759683056132,-1524.42,0.0001726,2]
[389497080,1759683056141,-1078.1,0.0001726,2]
[389497081,1759683056150,-500.0,0.0001726,2]
[389497082,1759683056158,-2430.6,0.0001726,2]
[389497083,1759683056168,-1566.87,0.0001726,2]
[389497084,1759683056177,-151.0,0.0001726,2]
[389497085,1759683056190,-500.0,0.0001726,2]
[389497086,1759683056207,-500.0,0.0001726,2]
[389497087,1759683056216,-3661.35,0.0001726,2]
[389497088,1759683056227,-5648.74,0.0001726,2]
[389497089,1759683056236,-500.0,0.0001726,2]
[389497090,1759683056245,-299.5681512,0.0001726,2]
[389497091,1759683056254,-941.56,0.0001726,2]
[389497092,1759683056263,-500.0,0.0001726,2]
[389497093,1759683056274,-2793.01,0.0001726,2]
[389497094,1759683056284,-500.0,0.0001726,2]
[389497095,1759683056293,-460.0,0.0001726,2]
[389497096,1759683056302,-500.0,0.0001726,2]
[389497097,1759683056311,-500.0,0.0001726,2]
[389497098,1759683056320,-4190.87,0.0001726,2]
[389497099,1759683056330,-500.0,0.0001726,2]
[389497100,1759683056340,-712.14,0.0001726,2]
[389497101,1759683056349,-500.0,0.0001726,2]
[389497102,1759683056359,-1244.49,0.0001726,2]
[389497103,1759683056369,-500.0,0.0001726,2]
[389497104,1759683056378,-7876.79,0.0001726,2]
[389497105,1759683056388,-500.0,0.0001726,2]
[389497106,1759683056398,-1636.71,0.0001726,2]
[389497107,1759683056407,-500.0,0.0001726,2]
[389497108,1759683056416,-500.0,0.0001726,2]
[389497109,1759683056425,-500.0,0.0001726,2]
[389497110,1759683056434,-500.0,0.0001726,2]
[389497111,1759683056443,-1542.81,0.0001726,2]
[389497112,1759683056459,-691.74,0.0001726,2]
[389497113,1759683056468,-240.48482293,0.0001726,2]
[389497114,1759683056478,-746.45,0.0001726,2]
[389497115,1759683056487,-745.75,0.0001726,2]
[389497116,1759683056496,-864.59,0.0001726,2]
[389497117,1759683056505,-500.0,0.0001726,2]
[389497118,1759683056515,-1625.81,0.0001726,2]
[389497119,1759683056524,-1276.87,0.0001726,2]
[389497120,1759683056534,-914.33,0.0001726,2]
[389497121,1759683056543,-500.0,0.0001726,2]
[389497122,1759683056553,-447.90976604,0.0001726,2]
[389497123,1759683056562,-1151.73,0.0001726,2]
[389497124,1759683056571,-1768.9,0.0001726,2]
[389497125,1759683056580,-4128.88,0.0001726,2]
[389497126,1759683056589,-500.0,0.0001726,2]
[389497127,1759683056598,-1072.496459,0.0001726,2]
[389497128,1759683056607,-1072.496459,0.0001726,2]
[389497129,1759683056617,-500.0,0.0001726,2]
[389497130,1759683056629,-1072.496459,0.0001726,2]
[389497131,1759683056638,-601.81,0.0001726,2]
[389497132,1759683056647,-1072.496459,0.0001726,2]
[389497133,1759683056657,-500.0,0.0001726,2]
[389497134,1759683056666,-1631.89,0.0001726,2]
[389497135,1759683056675,-2717.3,0.0001726,2]
[389497136,1759683056684,-853.97,0.0001726,2]
[389497137,1759683056693,-500.0,0.0001726,2]
[389497138,1759683056707,-500.0,0.0001726,2]
[389497139,1759683056717,-5655.4,0.0001726,2]
[389497140,1759683056726,-644.18,0.0001726,2]
[389497141,1759683056735,-851.61,0.0001726,2]
[389497142,1759683056745,-5499.36,0.0001726,2]
[389497143,1759683056754,-4498.11,0.0001726,2]
[389497144,1759683056764,-4396.27,0.0001726,2]
[389497145,1759683056774,-601.93,0.0001726,2]
[389497146,1759683056783,-500.0,0.0001726,2]
[389497147,1759683056793,-500.0,0.0001726,2]
[389497148,1759683056803,-830.43,0.0001726,2]
[389497149,1759683056812,-500.0,0.0001726,2]
[389497150,1759683056822,-500.0,0.0001726,2]
[389497151,1759683056831,-500.0,0.0001726,2]
[389497152,1759683056840,-921.77,0.0001726,2]
[389497153,1759683056851,-1181.0,0.0001726,2]
[389497154,1759683056860,-2597.62,0.0001726,2]
[389497155,1759683056870,-1226.01,0.0001726,2]
[389497156,1759683056879,-1056.87,0.0001726,2]
[389497157,1759683056889,-500.0,0.0001726,2]
[389497158,1759683056898,-500.0,0.0001726,2]
[389497159,1759683056908,-1595.17,0.0001726,2]
[389497160,1759683056917,-3567.7,0.0001726,2]
[389497161,1759683056927,-500.0,0.0001726,2]
[389497162,1759683056937,-500.0,0.0001726,2]
[389497163,1759683057006,-4467.37,0.0001726,2]
[389497164,1759683057015,-500.0,0.0001726,2]
[389497165,1759683057025,-500.0,0.0001726,2]
[389497166,1759683057040,-500.0,0.0001726,2]
[389497167,1759683057050,-2425.68,0.0001726,2]
[389497168,1759683057059,-459.47154514,0.0001726,2]
[389497169,1759683057068,-509.51,0.0001726,2]
[389497170,1759683057077,-1398.29,0.0001726,2]
[389497171,1759683057086,-4931.82,0.0001726,2]
[389497172,1759683057096,-500.0,0.0001726,2]
[389497173,1759683057105,-500.0,0.0001726,2]
[389497174,1759683057114,-2146.05,0.0001726,2]
[389497175,1759683057123,-2006.77,0.0001726,2]
[389497176,1759683057133,-500.0,0.0001726,2]
[389497177,1759683057142,-500.0,0.0001726,2]
[389497178,1759683057151,-500.0,0.0001726,2]
[389497179,1759683057161,-1916.69,0.0001726,2]
[389497180,1759683057170,-500.0,0.0001726,2]
[389497181,1759683057180,-9096.5,0.0001726,2]
[389497182,1759683057191,-3164.66,0.0001726,2]
[389497183,1759683057201,-500.0,0.0001726,2]
[389497184,1759683057215,-1132.36,0.0001726,2]
[389497185,1759683057225,-593.97,0.0001726,2]
[389497186,1759683057235,-500.0,0.0001726,2]
[389497187,1759683057244,-500.0,0.0001726,2]
[389497188,1759683057254,-500.0,0.0001726,2]
[389497189,1759683057263,-1024.56,0.0001726,2]
[389497190,1759683057274,-703.22,0.0001726,2]
[389497191,1759683057286,-486.53321674,0.0001726,2]
[389497192,1759683057295,-500.0,0.0001726,2]
[389497193,1759683057305,-500.0,0.0001726,2]
[389497194,1759683057315,-1118.02,0.0001726,2]
[389497195,1759683057324,-500.0,0.0001726,2]
[389497196,1759683057334,-500.0,0.0001726,2]
[389497197,1759683057343,-1995.61,0.0001726,2]
[389497198,1759683057353,-2310.91,0.0001726,2]
[389497199,1759683057362,-500.0,0.0001726,2]
[389497200,1759683057372,-583.51,0.0001726,2]
[389497201,1759683057381,-500.0,0.0001726,2]
[389497202,1759683057391,-741.26,0.0001726,2]
[389497203,1759683057400,-4044.23,0.0001726,2]
[389497204,1759683057410,-151.0,0.0001726,2]
[389497205,1759683057420,-500.0,0.0001726,2]
[389497206,1759683057429,-3420.83,0.0001726,2]
[389497207,1759683057439,-500.0,0.00017273,2]
[389497208,1759683057452,-500.0,0.00017273,2]
[389497209,1759683057461,-151.0,0.00017293,2]
[389497210,1759683057470,-500.0,0.00017293,2]
[389497211,1759683057480,-500.0,0.00017293,2]
[389497212,1759683057489,-500.0,0.00017293,2]
[389497213,1759683057499,-500.0,0.00017293,2]
[389497214,1759683057508,-224.18754419,0.00017293,2]
[389497215,1759683057517,-500.0,0.00017293,2]
[389497216,1759683057526,-151.0,0.00017293,2]
[389497217,1759683057535,-500.0,0.00017293,2]
[389497218,1759683057545,-1752.0,0.00017293,2]
[389497219,1759683057554,-500.0,0.00017293,2]
[389497220,1759683057563,-151.0,0.00017293,2]
[389497221,1759683057573,-500.0,0.00017293,2]
[389497222,1759683057582,-234.38153118,0.00017293,2]
[389497223,1759683057591,-500.0,0.00017293,2]
[389497224,1759683057600,-500.0,0.00017293,2]
[389497225,1759683057609,-500.0,0.00017293,2]
[389497226,1759683057619,-500.0,0.00017293,2]
[389497227,1759683057628,-500.0,0.00017293,2]
[389497228,1759683057637,-151.0,0.00017293,2]
[389497229,1759683057647,-500.0,0.00017293,2]
[389497230,1759683057656,-151.0,0.00017293,2]
[389497231,1759683057665,-500.0,0.00017293,2]
[389497232,1759683057674,-151.0,0.00017293,2]
[389497233,1759683057683,-500.0,0.00017293,2]
[389497234,1759683057692,-500.0,0.00017293,2]
[389497235,1759683057705,-500.0,0.00017293,2]
[389497236,1759683057714,-2241.03273719,0.00017306,2]
[389497237,1759683057723,-5614.54106455,0.00017306,2]
[389497238,1759683057731,-620.0,0.00017336,2]
[389497239,1759683057740,-1000.0,0.00017521,2]
[389497240,1759683057749,-1000.0,0.00017521,2]
[389497241,1759683057758,-1000.0,0.00017521,2]
[389497242,1759683057767,-1000.0,0.00017521,2]
[389497243,1759683057776,-1000.0,0.00017521,2]
[389497244,1759683057785,-1000.0,0.00017521,2]
[389497245,1759683057794,-1000.0,0.00017521,2]
[389497246,1759683057803,-1000.0,0.00017521,2]
[389497247,1759683057813,-1000.0,0.00017521,2]
[389497248,1759683057822,-1000.0,0.00017521,2]
[389497249,1759683057831,-1000.0,0.00017521,2]
[389497250,1759683057841,-1000.0,0.00017521,2]
[389497251,1759683057850,-412.11204663,0.00017521,2]
[389497252,1759683057859,-1000.0,0.00017521,2]
[389497253,1759683057869,-1000.0,0.00017521,2]
[389497254,1759683057878,-1000.0,0.00017521,2]
[389497255,1759683057887,-1000.0,0.00017521,2]
[389497256,1759683057896,-1000.0,0.00017521,2]
[389497257,1759683057905,-1000.0,0.00017521,2]
[389497258,1759683057914,-1002.49996422,0.00017521,2]
[389497259,1759683057923,-506.51789788,0.00017521,2]
[389497260,1759683057932,-1000.0,0.00017521,2]
[389497261,1759683057941,-1000.0,0.00017521,2]
[389497262,1759683057952,-1081.06423246,0.00017521,2]
[389497263,1759683057961,-1000.0,0.00017521,2]
[389497264,1759683057970,-1000.0,0.00017521,2]
[389497265,1759683057980,-1000.0,0.00017521,2]
[389497266,1759683057989,-1000.0,0.00017521,2]
[389497267,1759683057998,-1000.0,0.00017521,2]
[389497268,1759683058007,-1000.0,0.00017521,2]
[389497269,1759683058016,-1000.0,0.00017521,2]
[389497270,1759683058025,-1000.0,0.00017521,2]
[389497271,1759683058034,-1000.0,0.00017521,2]
[389497272,1759683058045,-500.0,0.00017534,2]
[389497273,1759683058054,-500.0,0.00017534,2]
[389497274,1759683058064,-1462.89,0.00017534,2]
[389497275,1759683058073,-500.0,0.00017534,2]
[389497276,1759683058082,-500.0,0.00017534,2]
[389497277,1759683058090,-500.0,0.00017534,2]
[389497278,1759683058099,-589.27320345,0.00017534,2]
[389497279,1759683058108,-500.0,0.00017534,2]
[389497280,1759683058117,-500.0,0.00017534,2]
[389497281,1759683058127,-480.0,0.00017534,2]
[389497282,1759683058136,-500.0,0.00017534,2]
[389497283,1759683058146,-500.0,0.00017534,2]
[389497284,1759683058155,-500.0,0.00017534,2]
[389497285,1759683058164,-500.0,0.00017534,2]
[389497286,1759683058173,-607.69,0.00017534,2]
[389497287,1759683058184,-855.9,0.00017534,2]
[389497288,1759683058198,-500.0,0.00017534,2]
[389497289,1759683058207,-256.88872601,0.00017534,2]
[389497290,1759683058217,-769.36,0.00017534,2]
[389497291,1759683058228,-500.0,0.00017534,2]
[389497292,1759683058237,-162.08836583,0.00017534,2]
[389497293,1759683058246,-500.0,0.00017534,2]
[389497294,1759683058256,-500.0,0.00017534,2]
[389497295,1759683058268,-500.0,0.00017534,2]
[389497296,1759683058277,-500.0,0.00017534,2]
[389497297,1759683058285,-994.94,0.00017534,2]
[389497298,1759683058294,-500.0,0.00017534,2]
[389497299,1759683058303,-500.0,0.00017534,2]
[389497300,1759683058312,-500.0,0.00017534,2]
[389497301,1759683058321,-486.22130262,0.00017534,2]
[389497302,1759683058330,-1206.92,0.00017534,2]
[389497303,1759683058339,-500.0,0.00017534,2]
[389497304,1759683058347,-500.0,0.00017534,2]
[389497305,1759683058356,-500.0,0.00017534,2]
[389497306,1759683058365,-500.0,0.00017534,2]
[389497307,1759683058374,-762.91,0.00017534,2]
[389497308,1759683058383,-992.97,0.00017534,2]
[389497309,1759683058392,-432.10020413,0.00017534,2]
[389497310,1759683058400,-842.2,0.00017534,2]
[389497311,1759683058410,-500.0,0.00017534,2]
[389497312,1759683058419,-447.00503831,0.00017534,2]
[389497313,1759683058427,-500.0,0.00017534,2]
[389497314,1759683058436,-912.33,0.00017534,2]
[389497315,1759683058447,-500.0,0.00017534,2]
[389497316,1759683058456,-500.0,0.00017534,2]
[389497317,1759683058465,-500.0,0.00017534,2]
[389497318,1759683058474,-500.0,0.00017534,2]
[389497319,1759683058483,-500.0,0.00017534,2]
[389497320,1759683058492,-500.0,0.00017534,2]
[389497321,1759683058502,-500.0,0.00017534,2]
[389497322,1759683058511,-500.0,0.00017534,2]
[389497323,1759683058520,-489.79008044,0.00017534,2]
[389497324,1759683058777,-10.20991956,0.00017534,2]
[389497325,1759683058786,-604.21407174,0.00017534,2]
[389497326,1759683058796,-500.0,0.00017534,2]
[389497327,1759683058806,-500.0,0.00017534,2]
[389497328,1759683058815,-640.99,0.00017534,2]
[389497329,1759683058825,-500.0,0.00017534,2]
[389497330,1759683058834,-751.03,0.00017534,2]
[389497331,1759683058843,-2842.52,0.00017534,2]
[389497332,1759683058852,-500.0,0.00017534,2]
[389497333,1759683058861,-500.0,0.00017534,2]
[389497334,1759683058870,-569.08,0.00017534,2]
[389497335,1759683058880,-500.0,0.00017534,2]
[389497336,1759683058889,-500.0,0.00017534,2]
[389497337,1759683058898,-500.0,0.00017534,2]
[389497338,1759683058907,-500.0,0.00017534,2]
[389497339,1759683058917,-500.0,0.00017534,2]
[389497340,1759683058927,-905.39,0.00017534,2]
[389497341,1759683058936,-1559.51,0.00017534,2]
[389497342,1759683058948,-863.89,0.00017534,2]
[389497343,1759683058958,-727.65,0.00017534,2]
[389497344,1759683058968,-500.0,0.00017534,2]
[389497345,1759683058977,-500.0,0.00017534,2]
[389497346,1759683058986,-500.0,0.00017534,2]
[389497347,1759683058996,-500.0,0.00017534,2]
[389497348,1759683059005,-951.46,0.00017534,2]
[389497349,1759683059015,-500.0,0.00017534,2]
[389497350,1759683059024,-500.0,0.00017534,2]
[389497351,1759683059035,-500.0,0.00017534,2]
[389497352,1759683059045,-500.0,0.00017534,2]
[389497353,1759683059060,-151.0,0.00017534,2]
[389497354,1759683059073,-500.0,0.00017534,2]
[389497355,1759683059084,-151.0,0.00017534,2]
[389497356,1759683059095,-500.0,0.00017534,2]
[389497357,1759683059105,-151.0,0.00017534,2]
[389497358,1759683059116,-500.0,0.00017534,2]
[389497359,1759683059127,-500.0,0.00017534,2]
[389497360,1759683059137,-1271.97,0.00017534,2]
[389497361,1759683059147,-500.0,0.00017534,2]
[389497362,1759683059156,-500.0,0.00017534,2]
[389497363,1759683059167,-500.0,0.00017534,2]
[389497364,1759683059177,-665.62,0.00017534,2]
[389497365,1759683059188,-665.43,0.00017534,2]
[389497366,1759683059203,-627.59,0.00017534,2]
[389497367,1759683059215,-500.0,0.00017534,2]
[389497368,1759683059225,-500.0,0.00017534,2]
[389497369,1759683059236,-3139.2,0.00017534,2]
[389497370,1759683059246,-707.99,0.00017534,2]
[389497371,1759683059255,-500.0,0.00017534,2]
[389497372,1759683059264,-577.86,0.00017534,2]
[389497373,1759683059274,-500.0,0.00017534,2]
[389497374,1759683059283,-1861.48,0.00017534,2]
[389497375,1759683059292,-500.0,0.00017534,2]
[389497376,1759683059301,-706.46,0.00017534,2]
[389497377,1759683059310,-500.0,0.00017534,2]
[389497378,1759683059319,-500.0,0.00017534,2]
[389497379,1759683059329,-1077.99,0.00017534,2]
[389497380,1759683059338,-500.0,0.00017534,2]
[389497381,1759683059347,-500.0,0.00017534,2]
[389497382,1759683059356,-500.0,0.00017534,2]
[389497383,1759683059366,-500.0,0.00017534,2]
[389497384,1759683059376,-199.375854,0.00017534,2]
[389497385,1759683059385,-653.03,0.00017534,2]
[389497386,1759683059394,-769.59,0.00017534,2]
[389497387,1759683059403,-500.0,0.00017534,2]
[389497388,1759683059412,-500.0,0.00017534,2]
[389497389,1759683059422,-1276.47,0.00017534,2]
[389497390,1759683059432,-500.0,0.00017534,2]
[389497391,1759683059441,-690.87,0.00017534,2]
[389497392,1759683059456,-221.17517466,0.00017534,2]
[389497393,1759683059465,-507.23,0.00017534,2]
[389497394,1759683059475,-500.0,0.00017534,2]
[389497395,1759683059485,-1894.19,0.00017534,2]
[389497396,1759683059494,-500.0,0.00017534,2]
[389497397,1759683059503,-500.0,0.00017534,2]
[389497398,1759683059513,-1293.08,0.00017534,2]
[389497399,1759683059522,-761.4,0.00017534,2]
[389497400,1759683059531,-500.0,0.00017534,2]
[389497401,1759683059540,-922.24,0.00017534,2]
[389497402,1759683059549,-500.0,0.00017534,2]
[389497403,1759683059558,-1589.72,0.00017534,2]
[389497404,1759683059567,-500.0,0.00017534,2]
[389497405,1759683059576,-3451.89,0.00017534,2]
[389497406,1759683059586,-1321.69,0.00017534,2]
[389497407,1759683059595,-500.0,0.00017534,2]
[389497408,1759683059604,-587.27,0.00017534,2]
[389497409,1759683059614,-500.0,0.00017534,2]
[389497410,1759683059623,-500.0,0.00017534,2]
[389497411,1759683059633,-500.0,0.00017534,2]
[389497412,1759683059642,-500.0,0.00017534,2]
[389497413,1759683059652,-500.0,0.00017534,2]
[389497414,1759683059661,-500.0,0.00017534,2]
[389497415,1759683059671,-919.59,0.00017534,2]
[389497416,1759683059680,-586.99,0.00017534,2]
[389497417,1759683059690,-500.0,0.00017534,2]
[389497418,1759683059702,-500.0,0.00017534,2]
[389497419,1759683059712,-329.90797475,0.00017534,2]
[389497420,1759683059722,-1240.25,0.00017534,2]
[389497421,1759683059731,-1980.12,0.00017534,2]
[389497422,1759683059740,-500.0,0.00017534,2]
[389497423,1759683059749,-500.0,0.00017534,2]
[389497424,1759683059759,-567.28050585,0.00017534,2]
[389497425,1759683059768,-589.1,0.00017534,2]
[389497426,1759683059778,-500.0,0.00017534,2]
[389497427,1759683059788,-690.9,0.00017534,2]
[389497428,1759683059798,-505.92,0.00017534,2]
[389497429,1759683059808,-500.0,0.00017534,2]
[389497430,1759683059818,-159.369487,0.00017534,2]
[389497431,1759683059828,-500.0,0.00017534,2]
[389497432,1759683059838,-500.0,0.00017534,2]
[389497433,1759683059848,-500.0,0.00017534,2]
[389497434,1759683059857,-500.0,0.00017534,2]
[389497435,1759683059866,-766.86,0.00017534,2]
[389497436,1759683059875,-500.0,0.00017534,2]
[389497437,1759683059885,-750.6,0.00017534,2]
[389497438,1759683059894,-662.6,0.00017534,2]
[389497439,1759683059903,-500.0,0.00017534,2]
[389497440,1759683059913,-500.0,0.00017534,2]
[389497441,1759683059923,-2886.56,0.00017534,2]
[389497442,1759683059933,-151.0,0.00017534,2]
[389497443,1759683059942,-548.46,0.00017534,2]
[389497444,1759683059958,-878.92,0.00017534,2]
[389497445,1759683059967,-1381.99,0.00017534,2]
[389497446,1759683059976,-500.0,0.00017534,2]
[389497447,1759683059986,-500.0,0.00017534,2]
[389497448,1759683059995,-500.0,0.00017534,2]
[389497449,1759683060006,-500.0,0.00017534,2]
[389497450,1759683060018,-500.0,0.00017534,2]
[389497451,1759683060031,-500.0,0.00017534,2]
[389497452,1759683060042,-500.0,0.00017534,2]
[389497453,1759683060053,-1231.65,0.00017534,2]
[389497454,1759683060064,-500.0,0.00017534,2]
[389497455,1759683060076,-500.0,0.00017534,2]
[389497456,1759683060086,-656.49,0.00017534,2]
[389497457,1759683060098,-500.0,0.00017534,2]
[389497458,1759683060108,-500.0,0.00017534,2]
[389497459,1759683060117,-1288.0,0.00017534,2]
[389497460,1759683060128,-675.41,0.00017534,2]
[389497461,1759683060139,-519.32,0.00017534,2]
[389497462,1759683060149,-828.85,0.00017534,2]
[389497463,1759683060159,-843.89,0.00017534,2]
[389497464,1759683060168,-500.0,0.00017534,2]
[389497465,1759683060179,-500.0,0.00017534,2]
[389497466,1759683060195,-500.0,0.00017534,2]
[389497467,1759683060214,-1439.12,0.00017534,2]
[389497468,1759683060224,-500.0,0.00017534,2]
[389497469,1759683060235,-500.0,0.00017534,2]
[389497470,1759683060245,-1208.03,0.00017534,2]
[389497471,1759683060255,-500.0,0.00017534,2]
[389497472,1759683060266,-205.50250986,0.00017534,2]
[389497473,1759683060277,-500.0,0.00017534,2]
[389497474,1759683060286,-2847.73,0.00017534,2]
[389497475,1759683060296,-500.0,0.00017534,2]
[389497476,1759683060306,-500.0,0.00017534,2]
[389497477,1759683060315,-500.0,0.00017534,2]
[389497478,1759683060325,-1201.88,0.00017534,2]
[389497479,1759683060335,-500.0,0.00017534,2]
[389497480,1759683060345,-7543.42,0.00017534,2]
[389497481,1759683060354,-500.0,0.00017534,2]